[Event "44th Chess Olympiad Open 2022"]
[Site "Chennai"]
[Date "2022.08.08"]
[Round "10.11"]
[White "Christiansen, Johan-Sebastian"]
[Black "Hamitevici, Vladimir"]
[Result "0-1"]
[WhiteElo "2593"]
[BlackElo "2473"]
[Annotator "RC"]
[PlyCount "94"]
[EventDate "2022.??.??"]
[TimeControl "60"]

1. e4 {[%emt 0:00:03]} c6 {[%emt 0:00:35]} 2. d4 {[%emt 0:02:34]} d5 {[%emt 0:
00:00]} 3. exd5 {[%emt 0:00:04]} cxd5 {[%emt 0:00:05]} 4. Bd3 {[%emt 0:00:04]}
Nc6 {[%emt 0:05:24]} 5. c3 {[%emt 0:00:06]} e6 {[%emt 0:00:02]} 6. Nf3 {
[%emt 0:00:53]} Bd6 {[%emt 0:00:16]} 7. O-O {[%emt 0:00:45]} Nge7 {[%emt 0:00:
00]} 8. Re1 {[%emt 0:00:25]} O-O {[%emt 0:12:27]} 9. b3 {[%emt 0:00:51]} Bd7 {
[%emt 0:07:52]} 10. Nbd2 {[%emt 0:14:21]} Qc7 {[%emt 0:04:41]} 11. Nf1 {
[%emt 0:09:49]} Nf5 {[%emt 0:10:11]} 12. Ng3 {[%emt 0:15:06]} Nxg3 {[%emt 0:00:
00]} 13. hxg3 {[%emt 0:01:57]} Rae8 {[%emt 0:15:21]} 14. c4 {[%emt 0:21:40]} e5
{[%emt 0:06:28]} 15. c5 {[%emt 0:04:03]} e4 {[%emt 0:01:09]} 16. cxd6 {[%emt 0:
00:00]} Qxd6 {[%emt 0:02:09]} 17. Bf4 {[%emt 0:00:24]} Qa3 {[%emt 0:01:04]} 18.
Ng5 {[%emt 0:08:31]} exd3 {[%emt 0:03:20]} 19. Rxe8 {[%emt 0:00:28]} Bxe8 {
[%emt 0:00:29]} 20. Qxd3 {[%emt 0:00:21]} g6 {[%emt 0:00:11]} 21. Nf3 {[%emt 0:
00:00]} f6 {[%emt 0:08:31]} 22. Qb5 {[%emt 0:03:40]} g5 {[%emt 0:03:52]} 23.
Be3 {[%emt 0:02:18]} Qe7 {[%emt 0:01:52]} 24. Qxd5+ {[%emt 0:01:44]} Bf7 {
[%emt 0:00:02]} 25. Qb5 {[%emt 0:01:20]} Rd8 {[%emt 0:00:21]} 26. Re1 {[%emt 0:
00:00]} Qd7 {[%emt 0:00:56]} 27. Qc5 {[%emt 0:07:11]} Bd5 {[%emt 0:01:19]} 28.
Nh2 {[%emt 0:00:02]} h5 {[%emt 0:01:11]} 29. f3 {[%emt 0:00:39]} Qg7 {[%emt 0:
00:00]} 30. Bf2 {[%emt 0:00:30]} f5 {[%emt 0:00:37]} 31. Nf1 {[%emt 0:02:16]}
f4 {[%emt 0:00:20]} 32. Kh1 {[%emt 0:01:01]} g4 {[%emt 0:00:47]} 33. fxg4 {
[%emt 0:00:16]} Qxg4 {[%emt 0:00:45]} 34. Nh2 {[%emt 0:00:22]} Qg6 {[%emt 0:00:
00]} 35. g4 {[%emt 0:00:24]} hxg4 {[%emt 0:00:18]} 36. Bh4 {[%emt 0:00:01]} Rd7
{[%emt 0:00:23]} 37. Rf1 {[%emt 0:00:46]} Qe4 {[%emt 0:00:26]} 38. Rg1 {
[%emt 0:00:58]} Rh7 {[%emt 0:00:14]} 39. Nf3 {[%emt 0:00:22]} Qe6 {[%emt 0:00:
00]} 40. Re1 {[%emt 0:00:23]} Qf7 {[%emt 0:00:55]} 41. Ng5 {[%emt 0:06:19]}
Rxh4+ {[%emt 0:04:04]} 42. Kg1 {[%emt 0:00:01]} Qd7 {[%emt 0:03:08]} 43. Ne6 {
[%emt 0:03:03]} Rh5 {[%emt 0:09:27]} 44. Qf8+ {[%emt 0:22:01]} Kh7 {[%emt 0:00:
00]} 45. Qc5 {[%emt 0:00:07]} Qf7 {[%emt 0:03:34]} 46. Nd8 {[%emt 0:00:09]} Qf6
{[%emt 0:01:33]} 47. Nxc6 {[%emt 0:00:23]} Rh1+ {[%emt 0:00:18]} 0-1

[Event "44th Chess Olympiad Open 2022"]
[Site "Chennai"]
[Date "2022.08.08"]
[Round "10.11"]
[White "Macovei, Andrei"]
[Black "Hammer, Jon Ludvig"]
[Result "0-1"]
[WhiteElo "2478"]
[BlackElo "2638"]
[Annotator "RC"]
[PlyCount "84"]
[EventDate "2022.??.??"]
[TimeControl "60"]

1. e4 {[%emt 0:00:12]} e5 {[%emt 0:00:06]} 2. Nf3 {[%emt 0:00:03]} Nc6 {
[%emt 0:00:09]} 3. Bb5 {[%emt 0:00:03]} Nf6 {[%emt 0:00:09]} 4. O-O {[%emt 0:
00:00]} Nxe4 {[%emt 0:00:07]} 5. Re1 {[%emt 0:00:03]} Nd6 {[%emt 0:00:11]} 6.
Nxe5 {[%emt 0:00:04]} Be7 {[%emt 0:00:10]} 7. Bf1 {[%emt 0:00:03]} Nf5 {
[%emt 0:00:44]} 8. Nf3 {[%emt 0:01:06]} O-O {[%emt 0:00:14]} 9. d4 {[%emt 0:00:
00]} d5 {[%emt 0:00:07]} 10. Nc3 {[%emt 0:02:00]} Bb4 {[%emt 0:00:09]} 11. a3 {
[%emt 0:04:31]} Bxc3 {[%emt 0:00:08]} 12. bxc3 {[%emt 0:00:02]} Nd6 {[%emt 0:
00:00]} 13. a4 {[%emt 0:15:47]} Na5 {[%emt 0:14:33]} 14. Bd3 {[%emt 0:11:36]}
Bf5 {[%emt 0:45:29]} 15. Re5 {[%emt 0:08:57]} Be4 {[%emt 0:03:38]} 16. Ng5 {
[%emt 0:02:48]} c6 {[%emt 0:12:54]} 17. Qh5 {[%emt 0:15:16]} Bxd3 {[%emt 0:00:
00]} 18. cxd3 {[%emt 0:02:50]} h6 {[%emt 0:00:01]} 19. Nf3 {[%emt 0:02:38]} f6
{[%emt 0:00:25]} 20. Re3 {[%emt 0:18:03]} Nb3 {[%emt 0:00:12]} 21. Rb1 {
[%emt 0:00:01]} Nxc1 {[%emt 0:00:09]} 22. Rxc1 {[%emt 0:00:01]} Re8 {[%emt 0:
00:00]} 23. c4 {[%emt 0:00:32]} Rxe3 {[%emt 0:00:27]} 24. fxe3 {[%emt 0:00:02]}
Qe7 {[%emt 0:00:15]} 25. e4 {[%emt 0:04:39]} dxc4 {[%emt 0:01:14]} 26. dxc4 {
[%emt 0:00:05]} Qxe4 {[%emt 0:00:16]} 27. Re1 {[%emt 0:00:53]} Qd3 {[%emt 0:00:
00]} 28. c5 {[%emt 0:01:00]} Nf7 {[%emt 0:00:22]} 29. h4 {[%emt 0:01:05]} b6 {
[%emt 0:07:13]} 30. Re7 {[%emt 0:00:17]} Qc4 {[%emt 0:00:14]} 31. Kh2 {[%emt 0:
00:00]} bxc5 {[%emt 0:00:55]} 32. Qxc5 {[%emt 0:01:16]} Qxa4 {[%emt 0:01:22]}
33. Rb7 {[%emt 0:00:18]} a5 {[%emt 0:00:48]} 34. d5 {[%emt 0:01:52]} Qf4+ {
[%emt 0:00:52]} 35. Kh1 {[%emt 0:00:01]} Ne5 {[%emt 0:05:13]} 36. Qe7 {[%emt 0:
00:00]} Qg4 {[%emt 0:00:03]} 37. d6 {[%emt 0:03:20]} Nxf3 {[%emt 0:00:03]} 38.
gxf3 {[%emt 0:00:01]} Qxf3+ {[%emt 0:00:12]} 39. Kh2 {[%emt 0:00:01]} Qf4+ {
[%emt 0:00:19]} 40. Kh3 {[%emt 0:02:48]} Qf5+ {[%emt 0:00:02]} 41. Kg2 {
[%emt 0:30:08]} Qg6+ {[%emt 0:30:18]} 42. Kh1 {[%emt 0:00:00]} Re8 {[%emt 0:00:
00]} 0-1

[Event "44th Chess Olympiad Open 2022"]
[Site "Chennai"]
[Date "2022.08.08"]
[Round "10.11"]
[White "Ceres, Dragos"]
[Black "Urkedal, Frode Olav Olsen"]
[Result "1-0"]
[WhiteElo "2378"]
[BlackElo "2555"]
[Annotator "RC"]
[PlyCount "119"]
[EventDate "2022.??.??"]
[TimeControl "60"]

1. e4 {[%emt 0:00:06]} e5 {[%emt 0:00:07]} 2. Nf3 {[%emt 0:00:06]} Nc6 {
[%emt 0:00:05]} 3. Nc3 {[%emt 0:00:05]} Nf6 {[%emt 0:00:13]} 4. d4 {[%emt 0:00:
00]} exd4 {[%emt 0:00:20]} 5. Nxd4 {[%emt 0:00:09]} Bb4 {[%emt 0:00:05]} 6.
Nxc6 {[%emt 0:00:55]} bxc6 {[%emt 0:00:08]} 7. Bd3 {[%emt 0:00:04]} d5 {
[%emt 0:00:31]} 8. exd5 {[%emt 0:00:20]} O-O {[%emt 0:00:18]} 9. O-O {[%emt 0:
00:00]} cxd5 {[%emt 0:00:30]} 10. Bg5 {[%emt 0:03:14]} c6 {[%emt 0:02:50]} 11.
Qf3 {[%emt 0:00:17]} Rb8 {[%emt 0:02:38]} 12. h3 {[%emt 0:15:22]} Bd6 {[%emt 0:
00:00]} 13. b3 {[%emt 0:06:33]} h6 {[%emt 0:28:05]} 14. Bxf6 {[%emt 0:04:21]}
Qxf6 {[%emt 0:00:06]} 15. Qxf6 {[%emt 0:00:05]} gxf6 {[%emt 0:00:05]} 16. Ne2 {
[%emt 0:00:08]} Re8 {[%emt 0:06:34]} 17. Rad1 {[%emt 0:05:46]} Be6 {[%emt 0:00:
00]} 18. Ng3 {[%emt 0:08:38]} c5 {[%emt 0:09:06]} 19. Nh5 {[%emt 0:04:05]} Be5
{[%emt 0:00:45]} 20. f4 {[%emt 0:02:31]} Bd4+ {[%emt 0:03:01]} 21. Kh1 {
[%emt 0:04:02]} Kh8 {[%emt 0:02:58]} 22. Rf3 {[%emt 0:03:31]} Rb6 {[%emt 0:00:
00]} 23. Bf1 {[%emt 0:02:08]} Bc8 {[%emt 0:06:00]} 24. c3 {[%emt 0:17:16]} Be3
{[%emt 0:00:06]} 25. Rxd5 {[%emt 0:00:09]} Bb7 {[%emt 0:00:07]} 26. Bc4 {
[%emt 0:00:19]} Bxd5 {[%emt 0:00:51]} 27. Bxd5 {[%emt 0:00:05]} Rd6 {[%emt 0:
00:00]} 28. Bxf7 {[%emt 0:01:45]} Rd1+ {[%emt 0:00:06]} 29. Kh2 {[%emt 0:00:04]
} Bg1+ {[%emt 0:00:08]} 30. Kg3 {[%emt 0:00:23]} Re3 {[%emt 0:09:55]} 31. Rxe3
{[%emt 0:01:35]} Bxe3 {[%emt 0:00:02]} 32. Bc4 {[%emt 0:01:59]} Rd6 {[%emt 0:
00:00]} 33. Kf3 {[%emt 0:00:26]} Bd2 {[%emt 0:00:16]} 34. Ng3 {[%emt 0:00:05]}
Rd8 {[%emt 0:04:49]} 35. Ne4 {[%emt 0:02:50]} f5 {[%emt 0:00:08]} 36. Ng3 {
[%emt 0:00:07]} Rf8 {[%emt 0:01:13]} 37. Bd3 {[%emt 0:00:28]} Bxc3 {[%emt 0:00:
00]} 38. Nxf5 {[%emt 0:00:18]} Bg7 {[%emt 0:00:38]} 39. g4 {[%emt 0:00:28]} Re8
{[%emt 0:00:33]} 40. h4 {[%emt 0:01:42]} Bd4 {[%emt 0:00:27]} 41. h5 {[%emt 0:
00:00]} Re1 {[%emt 0:04:14]} 42. Bc4 {[%emt 0:00:00]} Bg7 {[%emt 0:01:28]} 43.
g5 {[%emt 0:00:00]} Rh1 {[%emt 0:01:27]} 44. Kg2 {[%emt 0:00:00]} Rd1 {[%emt 0:
00:00]} 45. a4 {[%emt 0:00:00]} Rd2+ {[%emt 0:00:49]} 46. Kg3 {[%emt 0:00:00]}
Rd1 {[%emt 0:00:24]} 47. Ne7 {[%emt 0:00:00]} Rg1+ {[%emt 0:03:07]} 48. Kh2 {
[%emt 0:00:00]} Bd4 {[%emt 0:05:15]} 49. Nf5 {[%emt 0:00:00]} Rg4 {[%emt 0:00:
00]} 50. Nxh6 {[%emt 0:00:00]} Rxf4 {[%emt 0:00:19]} 51. Kh3 {[%emt 0:00:00]}
Kg7 {[%emt 0:05:12]} 52. Ng4 {[%emt 0:00:00]} Bc3 {[%emt 0:04:58]} 53. Kg3 {
[%emt 0:00:00]} Rf8 {[%emt 0:00:06]} 54. Bd3 {[%emt 0:03:10]} Be1+ {[%emt 0:00:
00]} 55. Kg2 {[%emt 0:00:16]} Bc3 {[%emt 0:00:46]} 56. h6+ {[%emt 0:00:18]} Kh8
{[%emt 0:00:24]} 57. g6 {[%emt 0:01:02]} Rd8 {[%emt 0:00:18]} 58. Bc4 {[%emt 0:
00:00]} Rd1 {[%emt 0:00:22]} 59. Ne3 {[%emt 0:01:34]} Rd2+ {[%emt 0:00:57]} 60.
Kf3 {[%emt 0:00:08]} 1-0

[Event "44th Chess Olympiad Open 2022"]
[Site "Chennai"]
[Date "2022.08.08"]
[Round "10.12"]
[White "Wojtaszek, Radoslaw"]
[Black "Grandelius, Nils"]
[Result "1/2-1/2"]
[WhiteElo "2708"]
[BlackElo "2655"]
[Annotator "TA"]
[PlyCount "37"]
[EventDate "2022.??.??"]
[TimeControl "60"]

{[%evp 19,37,24,20,4,6,0,8,12,14,8,0,0,14,0,0,0,0,0,10,0]} 1. d4 {[%emt 0:00:
00]} d5 {[%emt 0:00:26]} 2. c4 {[%emt 0:00:08]} c6 {[%emt 0:00:04]} 3. Nf3 {
[%emt 0:00:06]} Nf6 {[%emt 0:00:10]} 4. Nc3 {[%emt 0:00:36]} dxc4 {[%emt 0:00:
00]} 5. a4 {[%emt 0:00:06]} Bf5 {[%emt 0:00:30]} 6. Ne5 {[%emt 0:00:20]} Nbd7 {
[%emt 0:00:22]} 7. Nxc4 {[%emt 0:00:11]} Qc7 {[%emt 0:00:06]} 8. g3 {[%emt 0:
00:00]} e5 {[%emt 0:00:04]} 9. dxe5 {[%emt 0:00:08]} Nxe5 {[%emt 0:00:04]} 10.
Bf4 {[%emt 0:00:10]} Nfd7 {[%emt 0:00:06]} 11. Qc1 {[%emt 0:00:24] [#]
Threatens to win with Bxe5. The position is equal. D17: Slav Defence: 5 a4 Bf5:
Lines with 6 Nh4 and 6 Ne5.} f6 {[%emt 0:01:03]} 12. Bg2 {[%emt 0:00:21]} Be6 {
[%emt 0:00:18]} 13. Nxe5 {[%emt 0:01:07]} fxe5 {[%emt 0:00:10]} 14. Be3 {
[%emt 0:00:10]} Nc5 {[%emt 0:00:07]} 15. Qc2 {[%emt 0:02:47] [#]} Bb3 $5 $146 {
[%emt 0:01:30] An interesting novelty.} ({Predecessor:} 15... Be7 16. O-O Na6
17. Be4 Nb4 18. Qb1 g6 19. a5 Nd5 20. Bh6 a6 21. Nxd5 cxd5 22. Bg2 Bf8 23. Be3
Bg7 24. Rc1 Qd7 25. Bb6 O-O {½-½ (70) Georgiev,K (2663)-Sakaev,K (2625)
Ohrid 2009}) 16. Qf5 {[%emt 0:02:05]} Be6 {[%emt 0:02:32]} 17. Qc2 {[%emt 0:09:
00]} Bb3 {[%emt 0:01:42]} 18. Qf5 {[%emt 0:00:10]} Be6 {[%emt 0:00:00]} 19. Qc2
{[%emt 0:28:49] An even fight not without its subleties. Weighted Error Value:
White=0.04 (flawless) /Black=0.00 (flawless)} 1/2-1/2

[Event "44th Chess Olympiad Open 2022"]
[Site "Chennai"]
[Date "2022.08.08"]
[Round "10.12"]
[White "Moranda, Wojciech"]
[Black "Hillarp Persson, Tiger"]
[Result "0-1"]
[WhiteElo "2636"]
[BlackElo "2516"]
[Annotator "RC"]
[PlyCount "114"]
[EventDate "2022.??.??"]
[TimeControl "60"]

1. e4 {[%emt 0:00:04]} c5 {[%emt 0:00:06]} 2. Nf3 {[%emt 0:00:12]} d6 {[%emt 0:
00:00]} 3. d4 {[%emt 0:00:09]} cxd4 {[%emt 0:00:06]} 4. Nxd4 {[%emt 0:00:07]}
Nf6 {[%emt 0:00:05]} 5. Nc3 {[%emt 0:00:11]} a6 {[%emt 0:00:06]} 6. f3 {
[%emt 0:00:27]} e5 {[%emt 0:00:16]} 7. Nb3 {[%emt 0:00:10]} Be6 {[%emt 0:00:43]
} 8. Be3 {[%emt 0:00:08]} h5 {[%emt 0:00:08]} 9. Qd2 {[%emt 0:00:11]} Nbd7 {
[%emt 0:00:07]} 10. O-O-O {[%emt 0:00:12]} Qc7 {[%emt 0:03:23]} 11. Kb1 {
[%emt 0:03:12]} Be7 {[%emt 0:00:11]} 12. f4 {[%emt 0:01:04]} Rc8 {[%emt 0:00:
00]} 13. f5 {[%emt 0:03:17]} Bc4 {[%emt 0:00:08]} 14. Bxc4 {[%emt 0:05:59]}
Qxc4 {[%emt 0:00:06]} 15. Bg5 {[%emt 0:00:12]} b5 {[%emt 0:15:17]} 16. Na5 {
[%emt 0:01:05]} Qb4 {[%emt 0:02:40]} 17. Nb7 {[%emt 0:01:55]} Rxc3 {[%emt 0:00:
00]} 18. Rhe1 {[%emt 0:00:11]} d5 {[%emt 0:14:07]} 19. Bxf6 {[%emt 0:07:43]}
Nxf6 {[%emt 0:00:21]} 20. Qxc3 {[%emt 0:00:38]} Qxc3 {[%emt 0:00:08]} 21. bxc3
{[%emt 0:00:16]} Kd7 {[%emt 0:15:17]} 22. exd5 {[%emt 0:07:06]} Bd6 {[%emt 0:
00:00]} 23. Re3 {[%emt 0:16:06]} h4 {[%emt 0:02:42]} 24. h3 {[%emt 0:20:57]} e4
{[%emt 0:08:17]} 25. Rd4 {[%emt 0:06:05]} Rh5 {[%emt 0:05:31]} 26. Nxd6 {
[%emt 0:06:30]} Kxd6 {[%emt 0:00:09]} 27. Rexe4 {[%emt 0:00:22]} Nxe4 {[%emt 0:
00:00]} 28. Rxe4 {[%emt 0:00:05]} Kxd5 {[%emt 0:03:10]} 29. Rg4 {[%emt 0:01:05]
} Rh7 {[%emt 0:01:11]} 30. Kb2 {[%emt 0:07:49]} Ke5 {[%emt 0:01:17]} 31. a4 {
[%emt 0:04:33]} Kxf5 {[%emt 0:01:11]} 32. axb5 {[%emt 0:01:56]} axb5 {[%emt 0:
00:00]} 33. Kb3 {[%emt 0:00:58]} g5 {[%emt 0:00:58]} 34. Kb4 {[%emt 0:00:48]}
Rg7 {[%emt 0:02:17]} 35. Kxb5 {[%emt 0:01:04]} Ke5 {[%emt 0:00:08]} 36. Rd4 {
[%emt 0:02:59]} f5 {[%emt 0:00:38]} 37. Kc4 {[%emt 0:00:22]} g4 {[%emt 0:01:52]
} 38. Kd3 {[%emt 0:00:46]} gxh3 {[%emt 0:01:12]} 39. gxh3 {[%emt 0:00:03]} Rg3+
{[%emt 0:00:14]} 40. Ke2 {[%emt 0:00:36]} Rxh3 {[%emt 0:01:20]} 41. Kf1 {
[%emt 0:32:01]} f4 {[%emt 0:32:23]} 42. Rd8 {[%emt 0:00:00]} Rh2 {[%emt 0:00:
00]} 43. Rh8 {[%emt 0:00:00]} Ke4 {[%emt 0:00:00]} 44. Kg1 {[%emt 0:00:00]}
Rxc2 {[%emt 0:00:00]} 45. Rxh4 {[%emt 0:00:00]} Ke3 {[%emt 0:00:00]} 46. Rh8 {
[%emt 0:00:00]} Rc1+ {[%emt 0:00:00]} 47. Kh2 {[%emt 0:00:00]} f3 {[%emt 0:00:
00]} 48. Re8+ {[%emt 0:00:00]} Kf2 {[%emt 0:00:00]} 49. Ra8 {[%emt 0:00:00]}
Kf1 {[%emt 0:00:00]} 50. Ra2 {[%emt 0:00:00]} f2 {[%emt 0:00:00]} 51. Kg3 {
[%emt 0:00:00]} Rxc3+ {[%emt 0:00:00]} 52. Kh2 {[%emt 0:00:00]} Re3 {[%emt 0:
00:00]} 53. Ra1+ {[%emt 0:00:00]} Re1 {[%emt 0:00:00]} 54. Ra2 {[%emt 0:00:00]}
Re8 {[%emt 0:00:00]} 55. Ra1+ {[%emt 0:00:00]} Ke2 {[%emt 0:00:00]} 56. Ra2+ {
[%emt 0:00:00]} Kf3 {[%emt 0:00:00]} 57. Ra3+ {[%emt 0:00:00]} Re3 {[%emt 0:00:
00]} 0-1

[Event "44th Chess Olympiad Open 2022"]
[Site "Chennai"]
[Date "2022.08.08"]
[Round "10.12"]
[White "Berg, Emanuel"]
[Black "Bartel, Mateusz"]
[Result "0-1"]
[WhiteElo "2533"]
[BlackElo "2597"]
[Annotator "RC"]
[PlyCount "96"]
[EventDate "2022.??.??"]
[TimeControl "60"]

1. e4 {[%emt 0:00:03]} e5 {[%emt 0:00:06]} 2. Nf3 {[%emt 0:00:18]} Nc6 {
[%emt 0:00:06]} 3. Nc3 {[%emt 0:00:26]} Nf6 {[%emt 0:00:13]} 4. d4 {[%emt 0:00:
00]} Bb4 {[%emt 0:05:49]} 5. d5 {[%emt 0:07:21]} Ne7 {[%emt 0:02:33]} 6. Qd3 {
[%emt 0:10:17]} O-O {[%emt 0:03:50]} 7. Bg5 {[%emt 0:28:05]} Bxc3+ {[%emt 0:00:
00]} 8. Qxc3 {[%emt 0:05:30]} Nxe4 {[%emt 0:02:22]} 9. Qxe5 {[%emt 0:00:26]}
Nxg5 {[%emt 0:01:24]} 10. Qxg5 {[%emt 0:00:12]} h6 {[%emt 0:00:17]} 11. Qd2 {
[%emt 0:02:00]} d6 {[%emt 0:02:18]} 12. O-O-O {[%emt 0:01:32]} a5 {[%emt 0:00:
00]} 13. a4 {[%emt 0:07:43]} Bd7 {[%emt 0:11:33]} 14. b3 {[%emt 0:00:57]} Qb8 {
[%emt 0:03:09]} 15. c4 {[%emt 0:17:36]} c6 {[%emt 0:02:25]} 16. dxc6 {[%emt 0:
00:00]} bxc6 {[%emt 0:00:07]} 17. Kb2 {[%emt 0:01:36]} d5 {[%emt 0:01:46]} 18.
Re1 {[%emt 0:03:51]} Be6 {[%emt 0:06:15]} 19. c5 {[%emt 0:02:11]} d4 {[%emt 0:
00:00]} 20. Rxe6 {[%emt 0:01:22]} fxe6 {[%emt 0:02:57]} 21. Bc4 {[%emt 0:00:02]
} Qf4 {[%emt 0:05:01]} 22. Qxf4 {[%emt 0:01:58]} Rxf4 {[%emt 0:00:03]} 23. Re1
{[%emt 0:00:14]} Rd8 {[%emt 0:02:40]} 24. Rxe6 {[%emt 0:00:42]} Kf8 {[%emt 0:
00:00]} 25. Kc2 {[%emt 0:01:48]} Nd5 {[%emt 0:02:58]} 26. Kd2 {[%emt 0:02:15]}
Nb4 {[%emt 0:03:50]} 27. Ne5 {[%emt 0:02:53]} Rxf2+ {[%emt 0:00:31]} 28. Ke1 {
[%emt 0:00:01]} Rxg2 {[%emt 0:01:37]} 29. Ng6+ {[%emt 0:00:27]} Rxg6 {[%emt 0:
00:00]} 30. Rxg6 {[%emt 0:00:02]} Re8+ {[%emt 0:00:51]} 31. Kf2 {[%emt 0:01:47]
} d3 {[%emt 0:03:05]} 32. Re6 {[%emt 0:01:44]} Rxe6 {[%emt 0:02:40]} 33. Bxe6 {
[%emt 0:00:01]} Na6 {[%emt 0:00:31]} 34. Bd7 {[%emt 0:00:58]} Nxc5 {[%emt 0:00:
00]} 35. Bxc6 {[%emt 0:00:04]} Nxb3 {[%emt 0:00:19]} 36. Bf3 {[%emt 0:00:55]}
Nc5 {[%emt 0:02:24]} 37. Bd1 {[%emt 0:00:19]} Ke7 {[%emt 0:00:05]} 38. Ke3 {
[%emt 0:00:13]} g5 {[%emt 0:00:05]} 39. Kd4 {[%emt 0:00:56]} Kd6 {[%emt 0:00:
00]} 40. h3 {[%emt 0:00:32]} d2 {[%emt 0:03:26]} 41. Ke3 {[%emt 0:20:19]} Ke5 {
[%emt 0:01:34]} 42. Kxd2 {[%emt 0:00:36]} Kf4 {[%emt 0:00:05]} 43. Kc3 {
[%emt 0:04:05]} Kg3 {[%emt 0:00:09]} 44. Kc4 {[%emt 0:02:19]} Nxa4 {[%emt 0:00:
00]} 45. Bxa4 {[%emt 0:00:17]} Kxh3 {[%emt 0:00:03]} 46. Kd3 {[%emt 0:00:38]}
g4 {[%emt 0:00:15]} 47. Bd7 {[%emt 0:01:48]} h5 {[%emt 0:00:04]} 48. Ke2 {
[%emt 0:01:20]} Kh2 {[%emt 0:00:07]} 0-1

[Event "44th Chess Olympiad Open 2022"]
[Site "Chennai"]
[Date "2022.08.08"]
[Round "10.12"]
[White "Blomqvist, Erik"]
[Black "Piorun, Kacper"]
[Result "0-1"]
[WhiteElo "2521"]
[BlackElo "2636"]
[Annotator "RC"]
[PlyCount "96"]
[EventDate "2022.??.??"]
[TimeControl "60"]

1. e4 {[%emt 0:00:04]} e6 {[%emt 0:00:06]} 2. d4 {[%emt 0:00:11]} d5 {[%emt 0:
00:00]} 3. e5 {[%emt 0:00:17]} c5 {[%emt 0:00:06]} 4. c3 {[%emt 0:00:08]} Nc6 {
[%emt 0:00:05]} 5. Nf3 {[%emt 0:00:10]} Bd7 {[%emt 0:00:06]} 6. Be2 {[%emt 0:
00:00]} Nge7 {[%emt 0:00:21]} 7. O-O {[%emt 0:00:26]} Ng6 {[%emt 0:00:23]} 8.
Be3 {[%emt 0:00:31]} Be7 {[%emt 0:00:28]} 9. Nbd2 {[%emt 0:01:24]} O-O {
[%emt 0:01:00]} 10. Re1 {[%emt 0:00:52]} c4 {[%emt 0:07:41]} 11. Nf1 {[%emt 0:
00:00]} f6 {[%emt 0:01:26]} 12. exf6 {[%emt 0:00:29]} Rxf6 {[%emt 0:01:33]} 13.
Qd2 {[%emt 0:06:38]} Qb8 {[%emt 0:24:19]} 14. b3 {[%emt 0:08:19]} cxb3 {
[%emt 0:03:59]} 15. axb3 {[%emt 0:00:10]} Bd6 {[%emt 0:01:09]} 16. g3 {[%emt 0:
00:00]} Qc7 {[%emt 0:04:27]} 17. h4 {[%emt 0:06:13]} Raf8 {[%emt 0:02:13]} 18.
h5 {[%emt 0:09:01]} Nge7 {[%emt 0:02:20]} 19. Nh4 {[%emt 0:01:48]} e5 {[%emt 0:
00:00]} 20. dxe5 {[%emt 0:00:59]} Nxe5 {[%emt 0:00:37]} 21. Nh2 {[%emt 0:11:13]
} N5c6 {[%emt 0:10:56]} 22. f4 {[%emt 0:04:56]} Qc8 {[%emt 0:01:23]} 23. N2f3 {
[%emt 0:04:18]} Bg4 {[%emt 0:02:21]} 24. Nd4 {[%emt 0:00:34]} Nxd4 {[%emt 0:00:
00]} 25. Bxd4 {[%emt 0:01:00]} Re6 {[%emt 0:00:31]} 26. Rxa7 {[%emt 0:16:18]}
Nc6 {[%emt 0:01:41]} 27. Raa1 {[%emt 0:02:30]} Bxe2 {[%emt 0:08:13]} 28. Rxe2 {
[%emt 0:00:05]} Nxd4 {[%emt 0:00:04]} 29. cxd4 {[%emt 0:00:13]} Bb4 {[%emt 0:
00:00]} 30. Qd3 {[%emt 0:00:39]} Rxe2 {[%emt 0:00:10]} 31. Qxe2 {[%emt 0:00:04]
} Qc3 {[%emt 0:00:07]} 32. Rf1 {[%emt 0:04:01]} Qxg3+ {[%emt 0:00:08]} 33. Ng2
{[%emt 0:00:06]} Bc3 {[%emt 0:05:53]} 34. Qe6+ {[%emt 0:01:36]} Kh8 {[%emt 0:
00:00]} 35. Qxd5 {[%emt 0:00:25]} Qd3 {[%emt 0:01:59]} 36. Qf3 {[%emt 0:00:32]}
Bxd4+ {[%emt 0:03:28]} 37. Kh2 {[%emt 0:00:10]} Qxf3 {[%emt 0:01:41]} 38. Rxf3
{[%emt 0:00:04]} Rf5 {[%emt 0:00:08]} 39. Rh3 {[%emt 0:01:11]} Bf2 {[%emt 0:00:
00]} 40. h6 {[%emt 0:01:07]} gxh6 {[%emt 0:01:19]} 41. Rxh6 {[%emt 0:06:04]}
Kg7 {[%emt 0:01:25]} 42. Rh3 {[%emt 0:00:25]} Kg6 {[%emt 0:02:17]} 43. Nh4+ {
[%emt 0:03:13]} Bxh4 {[%emt 0:00:24]} 44. Rxh4 {[%emt 0:00:05]} Rh5 {[%emt 0:
00:00]} 45. Rxh5 {[%emt 0:01:45]} Kxh5 {[%emt 0:00:02]} 46. Kg3 {[%emt 0:00:59]
} Kg6 {[%emt 0:00:06]} 47. Kg4 {[%emt 0:00:52]} h5+ {[%emt 0:01:12]} 48. Kh4 {
[%emt 0:00:47]} b5 {[%emt 0:00:04]} 0-1

[Event "44th Chess Olympiad Open 2022"]
[Site "Chennai"]
[Date "2022.08.08"]
[Round "10.13"]
[White "Karthikeyan, Murali"]
[Black "Druska, Juraj"]
[Result "1/2-1/2"]
[WhiteElo "2613"]
[BlackElo "2519"]
[Annotator "RC"]
[PlyCount "92"]
[EventDate "2022.??.??"]
[TimeControl "60"]

1. e4 {[%emt 0:00:03]} c5 {[%emt 0:00:14]} 2. Nf3 {[%emt 0:00:08]} Nc6 {
[%emt 0:00:11]} 3. d4 {[%emt 0:00:14]} cxd4 {[%emt 0:00:06]} 4. Nxd4 {[%emt 0:
00:00]} g6 {[%emt 0:00:08]} 5. c4 {[%emt 0:00:31]} Nf6 {[%emt 0:00:21]} 6. Nc3
{[%emt 0:00:07]} d6 {[%emt 0:00:06]} 7. Be2 {[%emt 0:01:11]} Nxd4 {[%emt 0:00:
00]} 8. Qxd4 {[%emt 0:00:06]} Bg7 {[%emt 0:00:03]} 9. Be3 {[%emt 0:00:57]} O-O
{[%emt 0:00:08]} 10. Qd2 {[%emt 0:01:02]} a5 {[%emt 0:00:39]} 11. O-O {[%emt 0:
00:00]} a4 {[%emt 0:00:17]} 12. f3 {[%emt 0:01:06]} Qa5 {[%emt 0:01:07]} 13.
Rfc1 {[%emt 0:21:25]} Be6 {[%emt 0:00:58]} 14. Rab1 {[%emt 0:01:09]} Rfc8 {
[%emt 0:01:04]} 15. b4 {[%emt 0:07:49]} axb3 {[%emt 0:00:05]} 16. axb3 {
[%emt 0:00:04]} Qb4 {[%emt 0:00:16]} 17. Kf1 {[%emt 0:15:57]} Nd7 {[%emt 0:00:
00]} 18. Qc2 {[%emt 0:05:41]} Qxc3 {[%emt 0:07:21]} 19. Qxc3 {[%emt 0:00:09]}
Bxc3 {[%emt 0:00:04]} 20. Rxc3 {[%emt 0:00:06]} b5 {[%emt 0:00:06]} 21. Bd4 {
[%emt 0:16:29]} bxc4 {[%emt 0:01:00]} 22. Rbc1 {[%emt 0:01:39]} Kf8 {[%emt 0:
00:00]} 23. Bxc4 {[%emt 0:03:31]} Bxc4+ {[%emt 0:00:20]} 24. Rxc4 {[%emt 0:00:
00]} Rxc4 {[%emt 0:00:18]} 25. Rxc4 {[%emt 0:00:08]} f6 {[%emt 0:04:43]} 26. b4
{[%emt 0:02:17]} Ne5 {[%emt 0:08:04]} 27. Bxe5 {[%emt 0:03:52]} fxe5 {[%emt 0:
00:00]} 28. Ke2 {[%emt 0:02:16]} Ke8 {[%emt 0:11:52]} 29. Kd3 {[%emt 0:01:39]}
Kd7 {[%emt 0:00:11]} 30. Rc2 {[%emt 0:02:31]} e6 {[%emt 0:02:01]} 31. b5 {
[%emt 0:01:04]} Rb8 {[%emt 0:15:51]} 32. Rb2 {[%emt 0:00:41]} d5 {[%emt 0:00:
00]} 33. Kc3 {[%emt 0:00:16]} Rc8+ {[%emt 0:00:30]} 34. Kb4 {[%emt 0:02:39]}
Rc4+ {[%emt 0:00:18]} 35. Ka5 {[%emt 0:00:09]} Kc7 {[%emt 0:00:02]} 36. exd5 {
[%emt 0:06:05]} exd5 {[%emt 0:00:01]} 37. b6+ {[%emt 0:00:07]} Kb7 {[%emt 0:00:
00]} 38. Kb5 {[%emt 0:02:15]} Rc6 {[%emt 0:02:34]} 39. Re2 {[%emt 0:01:24]} e4
{[%emt 0:05:33]} 40. fxe4 {[%emt 0:01:20]} dxe4 {[%emt 0:00:08]} 41. g3 {
[%emt 0:30:49]} Rxb6+ {[%emt 0:41:02]} 42. Kc5 {[%emt 0:00:27]} Kc7 {[%emt 0:
00:00]} 43. Rxe4 {[%emt 0:00:13]} Rc6+ {[%emt 0:00:10]} 44. Kd5 {[%emt 0:00:05]
} Kd7 {[%emt 0:00:19]} 45. Ra4 {[%emt 0:00:00]} Rc7 {[%emt 0:00:00]} 46. Ke4 {
[%emt 0:00:00]} Ke6 {[%emt 0:00:00]} 1/2-1/2